[Event "Titled Tuesday Blitz March 29 Early 2022"]
[White "Fernandez, Daniel Howard"]
[Black "Shandrygin, Nikita"]
[WhiteFideId "5801605"]
[BlackFideId "24198668"]
[WhiteElo "2813"]
[BlackElo "2502"]
[Result "1-0"]
[Round "05"]
[TimeControl "180+1"]
[Date "2022.03.30"]
[WhiteClock "0:00:55"]
[BlackClock "0:00:17"]

1. e4 {[%clk 0:03:00]}  c5 {[%clk 0:02:59]} 2. Nf3 {[%clk 0:03:00]}  e6 {[%clk 0:03:00]} 3. d4 {[%clk 0:02:59]}  cxd4 {[%clk 0:03:01]} 4. Nxd4 {[%clk 0:03:00]}  Nf6 {[%clk 0:03:01]} 5. Nc3 {[%clk 0:03:00]}  Nc6 {[%clk 0:03:02]} 6. Ndb5 {[%clk 0:02:57]}  Bb4 {[%clk 0:03:01]} 7. a3 {[%clk 0:02:56]}  Bxc3+ {[%clk 0:03:00]} 8. Nxc3 {[%clk 0:02:57]}  d5 {[%clk 0:03:01]} 9. exd5 {[%clk 0:02:58]}  Nxd5 {[%clk 0:02:59]} 10. Bd2 {[%clk 0:02:44]}  O-O {[%clk 0:02:57]} 11. Qf3 {[%clk 0:02:43]}  Nd4 {[%clk 0:02:24]} 12. Qe4 {[%clk 0:02:38]}  Nf6 {[%clk 0:02:24]} 13. Qd3 {[%clk 0:02:37]}  e5 {[%clk 0:02:24]} 14. O-O-O {[%clk 0:02:34]}  Bf5 {[%clk 0:02:23]} 15. Qg3 {[%clk 0:02:34]}  Bxc2 {[%clk 0:02:19]} 16. Bd3 {[%clk 0:02:31]}  Bxd3 {[%clk 0:01:10]} 17. Qxd3 {[%clk 0:02:30]}  Nb3+ {[%clk 0:01:11]} 18. Kc2 {[%clk 0:02:30]}  Qxd3+ {[%clk 0:01:12]} 19. Kxd3 {[%clk 0:02:31]}  Rfd8+ {[%clk 0:01:08]} 20. Kc2 {[%clk 0:02:27]}  Nxd2 {[%clk 0:01:00]} 21. Rxd2 {[%clk 0:02:28]}  Rxd2+ {[%clk 0:01:00]} 22. Kxd2 {[%clk 0:02:28]}  Rd8+ {[%clk 0:01:01]} 23. Ke2 {[%clk 0:02:26]}  Kf8 {[%clk 0:01:00]} 24. Rc1 {[%clk 0:02:26]}  Rc8 {[%clk 0:00:58]} 25. h3 {[%clk 0:02:17]}  a6 {[%clk 0:00:58]} 26. Rd1 {[%clk 0:02:14]}  Ke7 {[%clk 0:00:58]} 27. g4 {[%clk 0:02:14]}  h6 {[%clk 0:00:57]} 28. Ke3 {[%clk 0:02:12]}  Ke6 {[%clk 0:00:50]} 29. f4 {[%clk 0:02:10]}  exf4+ {[%clk 0:00:48]} 30. Kxf4 {[%clk 0:02:11]}  Rc4+ {[%clk 0:00:46]} 31. Kf3 {[%clk 0:02:10]}  Nd7 {[%clk 0:00:45]} 32. Rd2 {[%clk 0:01:41]}  Ne5+ {[%clk 0:00:45]} 33. Kf2 {[%clk 0:01:39]}  h5 {[%clk 0:00:43]} 34. gxh5 {[%clk 0:01:34]}  Rh4 {[%clk 0:00:37]} 35. Ne2 {[%clk 0:01:35]}  Kf6 {[%clk 0:00:28]} 36. Rd6+ {[%clk 0:01:21]}  Kg5 {[%clk 0:00:27]} 37. Ng3 {[%clk 0:01:09]}  Rxh3 {[%clk 0:00:21]} 38. Kg2 {[%clk 0:01:09]}  Kh4 {[%clk 0:00:17]} 39. Rd4+ {[%clk 0:00:55]}  Ng4 {[%clk 0:00:17]} 40. Nf5+ {[%clk 0:00:55]}  Kg5 {[%clk 0:00:17]} 1-0


[Site "https://www.chess.com"]

[Event "Titled Tuesday Blitz March 29 Early 2022"]
[White "Fromm, Marius"]
[Black "Yang, Kaiqi"]
[WhiteFideId "12993190"]
[BlackFideId "8604398"]
[WhiteElo "2455"]
[BlackElo "2373"]
[Result "1-0"]
[Round "05"]
[TimeControl "180+1"]
[Date "2022.03.30"]
[WhiteClock "0:00:03"]
[BlackClock "0:00:01"]

1. e4 {[%clk 0:03:00]}  e6 {[%clk 0:03:00]} 2. d4 {[%clk 0:03:00]}  d5 {[%clk 0:03:00]} 3. Nc3 {[%clk 0:03:00]}  Bb4 {[%clk 0:03:00]} 4. e5 {[%clk 0:03:00]}  b6 {[%clk 0:02:59]} 5. a3 {[%clk 0:02:53]}  Bf8 {[%clk 0:02:58]} 6. Nf3 {[%clk 0:02:39]}  Qd7 {[%clk 0:02:57]} 7. h4 {[%clk 0:02:34]}  Ne7 {[%clk 0:02:55]} 8. h5 {[%clk 0:02:30]}  h6 {[%clk 0:02:55]} 9. Bf4 {[%clk 0:02:07]}  Bb7 {[%clk 0:02:39]} 10. Ne2 {[%clk 0:01:52]}  Nbc6 {[%clk 0:02:37]} 11. Ng3 {[%clk 0:01:50]}  Na5 {[%clk 0:02:30]} 12. Bd3 {[%clk 0:01:43]}  O-O-O {[%clk 0:02:26]} 13. c3 {[%clk 0:01:35]}  Rg8 {[%clk 0:02:07]} 14. Bh7 {[%clk 0:01:31]}  Rh8 {[%clk 0:02:06]} 15. Bd3 {[%clk 0:01:31]}  g5 {[%clk 0:01:59]} 16. hxg6 {[%clk 0:01:29]}  fxg6 {[%clk 0:01:57]} 17. b4 {[%clk 0:01:10]}  Nc4 {[%clk 0:01:57]} 18. Qc1 {[%clk 0:01:10]}  Nf5 {[%clk 0:01:34]} 19. Nxf5 {[%clk 0:01:09]}  gxf5 {[%clk 0:01:34]} 20. Rh3 {[%clk 0:01:04]}  Qg7 {[%clk 0:01:22]} 21. Rg3 {[%clk 0:01:02]}  Qf7 {[%clk 0:01:22]} 22. a4 {[%clk 0:01:01]}  a6 {[%clk 0:01:11]} 23. a5 {[%clk 0:00:58]}  b5 {[%clk 0:01:05]} 24. Ke2 {[%clk 0:00:54]}  Kb8 {[%clk 0:01:05]} 25. Qh1 {[%clk 0:00:48]}  Rh7 {[%clk 0:00:49]} 26. Qh3 {[%clk 0:00:46]}  Be7 {[%clk 0:00:41]} 27. Rh1 {[%clk 0:00:44]}  Rdh8 {[%clk 0:00:41]} 28. Qh5 {[%clk 0:00:44]}  Qf8 {[%clk 0:00:36]} 29. Rg6 {[%clk 0:00:43]}  Bc8 {[%clk 0:00:30]} 30. Rh3 {[%clk 0:00:30]}  Bd7 {[%clk 0:00:29]} 31. Rxh6 {[%clk 0:00:20]}  Rxh6 {[%clk 0:00:28]} 32. Bxh6 {[%clk 0:00:20]}  Qg8 {[%clk 0:00:24]} 33. Rg3 {[%clk 0:00:20]}  Qh7 {[%clk 0:00:20]} 34. Rg7 {[%clk 0:00:20]}  Qxg7 {[%clk 0:00:20]} 35. Bxg7 {[%clk 0:00:15]}  Rxh5 {[%clk 0:00:20]} 36. g3 {[%clk 0:00:12]}  Nb2 {[%clk 0:00:20]} 37. Bc2 {[%clk 0:00:09]}  Rh7 {[%clk 0:00:18]} 38. Bf6 {[%clk 0:00:09]}  Be8 {[%clk 0:00:18]} 39. Ng5 {[%clk 0:00:07]}  Bh5+ {[%clk 0:00:13]} 40. f3 {[%clk 0:00:06]}  Bxf6 {[%clk 0:00:10]} 41. Nxh7 {[%clk 0:00:06]}  Be7 {[%clk 0:00:10]} 42. Nf6 {[%clk 0:00:06]}  Bxf6 {[%clk 0:00:10]} 43. exf6 {[%clk 0:00:07]}  Kc8 {[%clk 0:00:10]} 44. Ke3 {[%clk 0:00:07]}  Kd7 {[%clk 0:00:10]} 45. Kf4 {[%clk 0:00:08]}  Ke8 {[%clk 0:00:09]} 46. g4 {[%clk 0:00:08]}  Bg6 {[%clk 0:00:07]} 47. Ke5 {[%clk 0:00:02]}  Kf7 {[%clk 0:00:07]} 48. gxf5 {[%clk 0:00:02]}  Bxf5 {[%clk 0:00:07]} 49. Bxf5 {[%clk 0:00:02]}  exf5 {[%clk 0:00:05]} 50. Kxf5 {[%clk 0:00:01]}  Na4 {[%clk 0:00:04]} 51. Ke5 {[%clk 0:00:02]}  Nxc3 {[%clk 0:00:05]} 52. f4 {[%clk 0:00:03]}  Ne2 {[%clk 0:00:02]} 53. Kxd5 {[%clk 0:00:02]}  Nxf4+ {[%clk 0:00:02]} 54. Kc6 {[%clk 0:00:02]}  Ne6 {[%clk 0:00:02]} 55. Kb7 {[%clk 0:00:01]}  Nxd4 {[%clk 0:00:03]} 56. Kxa6 {[%clk 0:00:02]}  Nc2 {[%clk 0:00:02]} 57. Kxb5 {[%clk 0:00:02]}  Nd4+ {[%clk 0:00:01]} 58. Kc5 {[%clk 0:00:02]}  Ne6+ {[%clk 0:00:01]} 59. Kc6 {[%clk 0:00:03]} 1-0


[Site "https://www.chess.com"]

[Event "Titled Tuesday Blitz March 29 Early 2022"]
[White "Garagulya, Konstantin"]
[Black "De Silva, L M S T"]
[WhiteFideId "4128931"]
[BlackFideId "9953698"]
[WhiteElo "2505"]
[BlackElo "2715"]
[Result "0-1"]
[Round "05"]
[TimeControl "180+1"]
[Date "2022.03.30"]
[WhiteClock "0:00:01"]
[BlackClock "0:00:57"]

1. d4 {[%clk 0:02:18]}  Nf6 {[%clk 0:02:58]} 2. Nf3 {[%clk 0:02:18]}  e6 {[%clk 0:02:58]} 3. Bg5 {[%clk 0:02:19]}  h6 {[%clk 0:02:58]} 4. Bh4 {[%clk 0:02:19]}  g5 {[%clk 0:02:58]} 5. Bg3 {[%clk 0:02:18]}  Bg7 {[%clk 0:02:59]} 6. Nbd2 {[%clk 0:02:19]}  Nh5 {[%clk 0:02:58]} 7. e4 {[%clk 0:02:19]}  d6 {[%clk 0:02:57]} 8. c3 {[%clk 0:02:18]}  Nd7 {[%clk 0:02:57]} 9. Bd3 {[%clk 0:02:17]}  b6 {[%clk 0:02:57]} 10. Bb5 {[%clk 0:02:14]}  Bb7 {[%clk 0:02:56]} 11. Qa4 {[%clk 0:02:07]}  Nxg3 {[%clk 0:02:55]} 12. hxg3 {[%clk 0:02:07]}  a6 {[%clk 0:02:54]} 13. Bd3 {[%clk 0:01:59]}  Qe7 {[%clk 0:02:50]} 14. Qc2 {[%clk 0:01:53]}  e5 {[%clk 0:02:48]} 15. d5 {[%clk 0:01:53]}  f5 {[%clk 0:02:44]} 16. exf5 {[%clk 0:01:42]}  Bxd5 {[%clk 0:02:40]} 17. Be4 {[%clk 0:01:42]}  c6 {[%clk 0:02:32]} 18. c4 {[%clk 0:01:42]}  Bxe4 {[%clk 0:02:32]} 19. Nxe4 {[%clk 0:01:20]}  d5 {[%clk 0:02:27]} 20. cxd5 {[%clk 0:01:19]}  cxd5 {[%clk 0:02:28]} 21. Qc6 {[%clk 0:01:18]}  Qb4+ {[%clk 0:02:19]} 22. Ned2 {[%clk 0:01:00]}  Rd8 {[%clk 0:02:06]} 23. Qxd5 {[%clk 0:00:32]}  Nc5 {[%clk 0:01:42]} 24. Qc6+ {[%clk 0:00:31]}  Kf7 {[%clk 0:01:40]} 25. O-O {[%clk 0:00:22]}  Bf6 {[%clk 0:01:39]} 26. a3 {[%clk 0:00:19]}  Qa4 {[%clk 0:01:33]} 27. Qxb6 {[%clk 0:00:16]}  Nd3 {[%clk 0:01:29]} 28. b3 {[%clk 0:00:12]}  Qd7 {[%clk 0:01:23]} 29. Qxa6 {[%clk 0:00:10]}  Qxf5 {[%clk 0:01:19]} 30. Qc4+ {[%clk 0:00:11]}  Kg6 {[%clk 0:01:18]} 31. g4 {[%clk 0:00:11]}  Qf4 {[%clk 0:01:17]} 32. Qe4+ {[%clk 0:00:09]}  Kg7 {[%clk 0:01:15]} 33. g3 {[%clk 0:00:10]}  Qxe4 {[%clk 0:01:13]} 34. Nxe4 {[%clk 0:00:11]}  h5 {[%clk 0:01:08]} 35. Nfxg5 {[%clk 0:00:06]}  Kg6 {[%clk 0:01:00]} 36. Kg2 {[%clk 0:00:02]}  Bxg5 {[%clk 0:00:59]} 37. Nxg5 {[%clk 0:00:02]}  Kxg5 {[%clk 0:01:00]} 38. gxh5 {[%clk 0:00:02]}  Rxh5 {[%clk 0:00:58]} 39. Rad1 {[%clk 0:00:02]}  e4 {[%clk 0:00:58]} 40. f3 {[%clk 0:00:01]}  e3 {[%clk 0:00:57]} 0-1


[Site "https://www.chess.com"]

[Event "Titled Tuesday Blitz March 29 Early 2022"]
[White "Garv Gaur"]
[Black "Szpar, Milosz"]
[WhiteFideId "45030839"]
[BlackFideId "1184989"]
[WhiteElo "1950"]
[BlackElo "2447"]
[Result "1-0"]
[Round "05"]
[TimeControl "180+1"]
[Date "2022.03.30"]
[WhiteClock "0:01:33"]
[BlackClock "0:00:05"]

1. d4 {[%clk 0:03:00]}  d5 {[%clk 0:01:24]} 2. Nf3 {[%clk 0:03:00]}  Nf6 {[%clk 0:01:22]} 3. c4 {[%clk 0:03:00]}  dxc4 {[%clk 0:01:22]} 4. g3 {[%clk 0:02:59]}  b5 {[%clk 0:01:21]} 5. Bg2 {[%clk 0:02:59]}  Bb7 {[%clk 0:01:21]} 6. O-O {[%clk 0:02:59]}  a6 {[%clk 0:01:21]} 7. a4 {[%clk 0:02:58]}  c6 {[%clk 0:01:20]} 8. Ne5 {[%clk 0:02:57]}  e6 {[%clk 0:01:19]} 9. Nc3 {[%clk 0:02:56]}  Qb6 {[%clk 0:01:13]} 10. e4 {[%clk 0:02:48]}  Nbd7 {[%clk 0:01:12]} 11. Nxd7 {[%clk 0:02:44]}  Nxd7 {[%clk 0:01:13]} 12. Be3 {[%clk 0:02:45]}  Qc7 {[%clk 0:01:08]} 13. d5 {[%clk 0:02:39]}  Bc5 {[%clk 0:00:59]} 14. dxe6 {[%clk 0:02:36]}  Bxe3 {[%clk 0:00:52]} 15. exd7+ {[%clk 0:02:35]}  Qxd7 {[%clk 0:00:41]} 16. Qxd7+ {[%clk 0:02:35]}  Kxd7 {[%clk 0:00:42]} 17. fxe3 {[%clk 0:02:36]}  Ke7 {[%clk 0:00:38]} 18. e5 {[%clk 0:02:35]}  Rhd8 {[%clk 0:00:37]} 19. Rfd1 {[%clk 0:02:34]}  Ke6 {[%clk 0:00:32]} 20. axb5 {[%clk 0:02:17]}  axb5 {[%clk 0:00:31]} 21. Nxb5 {[%clk 0:02:15]}  Rxa1 {[%clk 0:00:21]} 22. Rxa1 {[%clk 0:02:15]}  cxb5 {[%clk 0:00:21]} 23. Bxb7 {[%clk 0:02:15]}  Rd2 {[%clk 0:00:19]} 24. Rb1 {[%clk 0:01:54]}  b4 {[%clk 0:00:20]} 25. Rc1 {[%clk 0:01:48]}  c3 {[%clk 0:00:19]} 26. bxc3 {[%clk 0:01:48]}  b3 {[%clk 0:00:19]} 27. Rb1 {[%clk 0:01:48]}  Kxe5 {[%clk 0:00:20]} 28. Rxb3 {[%clk 0:01:46]}  g6 {[%clk 0:00:18]} 29. Bf3 {[%clk 0:01:46]}  f5 {[%clk 0:00:18]} 30. Rb5+ {[%clk 0:01:46]}  Kf6 {[%clk 0:00:18]} 31. c4 {[%clk 0:01:45]}  Rc2 {[%clk 0:00:18]} 32. Rc5 {[%clk 0:01:45]}  h5 {[%clk 0:00:18]} 33. h4 {[%clk 0:01:45]}  Rc3 {[%clk 0:00:16]} 34. Kf2 {[%clk 0:01:45]}  Rc2+ {[%clk 0:00:16]} 35. Be2 {[%clk 0:01:45]}  Rc3 {[%clk 0:00:15]} 36. Kf3 {[%clk 0:01:46]}  Rc1 {[%clk 0:00:15]} 37. Ra5 {[%clk 0:01:43]}  Rc3 {[%clk 0:00:14]} 38. c5 {[%clk 0:01:42]}  Ke5 {[%clk 0:00:14]} 39. c6+ {[%clk 0:01:36]}  Kd6 {[%clk 0:00:14]} 40. Ra6 {[%clk 0:01:36]}  Rc2 {[%clk 0:00:13]} 41. c7+ {[%clk 0:01:35]}  Kxc7 {[%clk 0:00:12]} 42. Rxg6 {[%clk 0:01:36]}  Rc1 {[%clk 0:00:13]} 43. Rg5 {[%clk 0:01:36]}  Ra1 {[%clk 0:00:11]} 44. Rxh5 {[%clk 0:01:36]}  Kd6 {[%clk 0:00:11]} 45. Rxf5 {[%clk 0:01:35]}  Ke6 {[%clk 0:00:11]} 46. Rf4 {[%clk 0:01:35]}  Rh1 {[%clk 0:00:11]} 47. Kg4 {[%clk 0:01:35]}  Rh2 {[%clk 0:00:11]} 48. Bf3 {[%clk 0:01:35]}  Ke5 {[%clk 0:00:09]} 49. Kg5 {[%clk 0:01:35]}  Rh3 {[%clk 0:00:08]} 50. g4 {[%clk 0:01:31]}  Rh2 {[%clk 0:00:08]} 51. Re4+ {[%clk 0:01:31]}  Kd6 {[%clk 0:00:08]} 52. h5 {[%clk 0:01:32]}  Rf2 {[%clk 0:00:05]} 53. Rf4 {[%clk 0:01:33]}  Rf1 {[%clk 0:00:05]} 54. Kg6 {[%clk 0:01:32]}  Re1 {[%clk 0:00:06]} 55. h6 {[%clk 0:01:31]}  Ke5 {[%clk 0:00:06]} 56. h7 {[%clk 0:01:31]}  Rxe3 {[%clk 0:00:07]} 57. Rf5+ {[%clk 0:01:32]}  Kd6 {[%clk 0:00:07]} 58. h8=Q {[%clk 0:01:33]}  Re7 {[%clk 0:00:07]} 59. Qd4+ {[%clk 0:01:32]}  Kc7 {[%clk 0:00:06]} 60. Rc5+ {[%clk 0:01:32]}  Kb8 {[%clk 0:00:06]} 61. Qb4+ {[%clk 0:01:33]}  Rb7 {[%clk 0:00:05]} 62. Qxb7# {[%clk 0:01:33]} 1-0


[Site "https://www.chess.com"]

[Event "Titled Tuesday Blitz March 29 Early 2022"]
[White "Gatterer, Florian"]
[Black "Ianov, Viktor"]
[WhiteFideId "811688"]
[BlackFideId "14102730"]
[WhiteElo "2218"]
[BlackElo "2161"]
[Result "1/2-1/2"]
[Round "05"]
[TimeControl "180+1"]
[Date "2022.03.30"]
[WhiteClock "0:00:20"]
[BlackClock "0:01:50"]

1. b3 {[%clk 0:03:00]}  d6 {[%clk 0:02:57]} 2. Bb2 {[%clk 0:02:59]}  Nd7 {[%clk 0:02:56]} 3. d4 {[%clk 0:02:56]}  Ngf6 {[%clk 0:02:56]} 4. Nf3 {[%clk 0:02:55]}  g6 {[%clk 0:02:56]} 5. c4 {[%clk 0:02:51]}  Bg7 {[%clk 0:02:56]} 6. e3 {[%clk 0:02:45]}  O-O {[%clk 0:02:56]} 7. Be2 {[%clk 0:02:46]}  e5 {[%clk 0:02:55]} 8. dxe5 {[%clk 0:02:45]}  Ng4 {[%clk 0:02:55]} 9. Qc1 {[%clk 0:02:40]}  Ngxe5 {[%clk 0:02:53]} 10. Nbd2 {[%clk 0:02:33]}  Nc5 {[%clk 0:02:53]} 11. Nxe5 {[%clk 0:02:28]}  dxe5 {[%clk 0:02:52]} 12. Qc2 {[%clk 0:02:20]}  Bf5 {[%clk 0:02:46]} 13. e4 {[%clk 0:02:20]}  Bd7 {[%clk 0:02:45]} 14. O-O {[%clk 0:02:14]}  a5 {[%clk 0:02:44]} 15. Nf3 {[%clk 0:02:06]}  Qe7 {[%clk 0:02:40]} 16. Rfd1 {[%clk 0:02:03]}  Bc6 {[%clk 0:02:40]} 17. Ba3 {[%clk 0:01:43]}  b6 {[%clk 0:02:37]} 18. Ne1 {[%clk 0:01:37]}  Rfd8 {[%clk 0:02:33]} 19. Bf3 {[%clk 0:01:28]}  a4 {[%clk 0:02:30]} 20. Rxd8+ {[%clk 0:01:22]}  Rxd8 {[%clk 0:02:23]} 21. Rd1 {[%clk 0:01:17]}  axb3 {[%clk 0:02:19]} 22. axb3 {[%clk 0:01:13]}  Rxd1 {[%clk 0:02:17]} 23. Qxd1 {[%clk 0:01:12]}  Qd7 {[%clk 0:02:07]} 24. Bxc5 {[%clk 0:00:58]}  Qxd1 {[%clk 0:02:06]} 25. Bxd1 {[%clk 0:00:58]}  bxc5 {[%clk 0:02:06]} 26. f3 {[%clk 0:00:58]}  Bf8 {[%clk 0:02:06]} 27. Kf2 {[%clk 0:00:53]}  f6 {[%clk 0:02:04]} 28. Bc2 {[%clk 0:00:40]}  Kf7 {[%clk 0:02:03]} 29. Bd3 {[%clk 0:00:39]}  Ke6 {[%clk 0:02:03]} 30. Nc2 {[%clk 0:00:35]}  Bh6 {[%clk 0:02:01]} 31. Ne3 {[%clk 0:00:35]}  Bxe3+ {[%clk 0:02:00]} 32. Kxe3 {[%clk 0:00:34]}  g5 {[%clk 0:02:00]} 33. g4 {[%clk 0:00:31]}  Kd6 {[%clk 0:01:59]} 34. Kd2 {[%clk 0:00:28]}  Be8 {[%clk 0:01:59]} 35. Kc3 {[%clk 0:00:26]}  Kc6 {[%clk 0:01:57]} 36. h3 {[%clk 0:00:23]}  h5 {[%clk 0:01:56]} 37. Bc2 {[%clk 0:00:22]}  h4 {[%clk 0:01:54]} 38. Bd3 {[%clk 0:00:22]}  Kb6 {[%clk 0:01:54]} 39. Be2 {[%clk 0:00:22]}  Ka5 {[%clk 0:01:53]} 40. Bd1 {[%clk 0:00:21]}  Bd7 {[%clk 0:01:52]} 41. Be2 {[%clk 0:00:20]}  Bc6 {[%clk 0:01:50]} 1/2-1/2


[Site "https://www.chess.com"]

[Event "Titled Tuesday Blitz March 29 Early 2022"]
[White "Guseva, Marina"]
[Black "Bachmann, Axel"]
[WhiteFideId "4149351"]
[BlackFideId "3700488"]
[WhiteElo "2160"]
[BlackElo "2587"]
[Result "0-1"]
[Round "05"]
[TimeControl "180+1"]
[Date "2022.03.30"]
[WhiteClock "0:00:01"]
[BlackClock "0:00:08"]

1. d4 {[%clk 0:03:00]}  Nf6 {[%clk 0:02:59]} 2. Nf3 {[%clk 0:02:59]}  g6 {[%clk 0:03:00]} 3. Bf4 {[%clk 0:02:59]}  b6 {[%clk 0:02:59]} 4. e3 {[%clk 0:02:58]}  Bg7 {[%clk 0:02:59]} 5. Be2 {[%clk 0:02:58]}  Bb7 {[%clk 0:03:00]} 6. h3 {[%clk 0:02:54]}  d6 {[%clk 0:02:59]} 7. O-O {[%clk 0:02:54]}  O-O {[%clk 0:03:00]} 8. a4 {[%clk 0:02:54]}  a5 {[%clk 0:02:59]} 9. Nbd2 {[%clk 0:02:45]}  Nbd7 {[%clk 0:02:56]} 10. c3 {[%clk 0:02:41]}  Re8 {[%clk 0:02:43]} 11. Nc4 {[%clk 0:02:28]}  Ne4 {[%clk 0:02:40]} 12. Bh2 {[%clk 0:02:15]}  e6 {[%clk 0:02:05]} 13. Nfd2 {[%clk 0:02:12]}  Ndf6 {[%clk 0:01:58]} 14. f3 {[%clk 0:02:07]}  Nxd2 {[%clk 0:01:52]} 15. Qxd2 {[%clk 0:02:07]}  Bh6 {[%clk 0:01:48]} 16. Rfe1 {[%clk 0:01:45]}  Nd5 {[%clk 0:01:41]} 17. Bf1 {[%clk 0:01:34]}  Ba6 {[%clk 0:01:39]} 18. Qf2 {[%clk 0:01:30]}  Qg5 {[%clk 0:01:15]} 19. f4 {[%clk 0:00:37]}  Qf6 {[%clk 0:01:14]} 20. g3 {[%clk 0:00:37]}  Qe7 {[%clk 0:00:32]} 21. e4 {[%clk 0:00:36]}  Nf6 {[%clk 0:00:32]} 22. g4 {[%clk 0:00:32]}  Nxe4 {[%clk 0:00:27]} 23. Rxe4 {[%clk 0:00:25]}  d5 {[%clk 0:00:28]} 24. Ree1 {[%clk 0:00:09]}  Bxc4 {[%clk 0:00:27]} 25. Bg2 {[%clk 0:00:07]}  c5 {[%clk 0:00:18]} 26. Rab1 {[%clk 0:00:06]}  cxd4 {[%clk 0:00:16]} 27. Qxd4 {[%clk 0:00:03]}  Bg7 {[%clk 0:00:15]} 28. Qf2 {[%clk 0:00:03]}  Qa7 {[%clk 0:00:11]} 29. Kh1 {[%clk 0:00:02]}  b5 {[%clk 0:00:10]} 30. Qf3 {[%clk 0:00:02]}  bxa4 {[%clk 0:00:09]} 31. f5 {[%clk 0:00:02]}  exf5 {[%clk 0:00:09]} 32. gxf5 {[%clk 0:00:01]}  Ba2 {[%clk 0:00:08]} 33. Ra1 {[%clk 0:00:01]}  a3 {[%clk 0:00:08]} 0-1


[Site "https://www.chess.com"]

[Event "Titled Tuesday Blitz March 29 Early 2022"]
[White "Hamley, Ryan"]
[Black "Mogirzan, Matei-Valeriu"]
[WhiteFideId "30959497"]
[BlackFideId "1257455"]
[WhiteElo "2525"]
[BlackElo "1733"]
[Result "1-0"]
[Round "05"]
[TimeControl "180+1"]
[Date "2022.03.30"]
[WhiteClock "0:00:45"]
[BlackClock "0:00:01"]

1. Nf3 {[%clk 0:02:56]}  Nc6 {[%clk 0:02:57]} 2. e4 {[%clk 0:02:55]}  d6 {[%clk 0:02:52]} 3. d4 {[%clk 0:02:54]}  g6 {[%clk 0:02:50]} 4. Be3 {[%clk 0:02:53]}  Bg7 {[%clk 0:02:50]} 5. h3 {[%clk 0:02:50]}  e5 {[%clk 0:02:46]} 6. d5 {[%clk 0:02:48]}  Nce7 {[%clk 0:02:43]} 7. Nfd2 {[%clk 0:02:38]}  f5 {[%clk 0:02:37]} 8. f3 {[%clk 0:02:38]}  f4 {[%clk 0:02:28]} 9. Bf2 {[%clk 0:02:38]}  Nf6 {[%clk 0:02:28]} 10. c4 {[%clk 0:02:38]}  g5 {[%clk 0:02:23]} 11. Nc3 {[%clk 0:02:38]}  h5 {[%clk 0:02:21]} 12. b4 {[%clk 0:02:36]}  g4 {[%clk 0:02:16]} 13. hxg4 {[%clk 0:02:25]}  hxg4 {[%clk 0:02:15]} 14. Rxh8+ {[%clk 0:02:26]}  Bxh8 {[%clk 0:02:15]} 15. Qc2 {[%clk 0:02:26]}  g3 {[%clk 0:02:11]} 16. Bg1 {[%clk 0:02:25]}  Ng6 {[%clk 0:01:50]} 17. c5 {[%clk 0:02:23]}  Nh4 {[%clk 0:01:40]} 18. Nc4 {[%clk 0:02:19]}  b6 {[%clk 0:01:28]} 19. cxd6 {[%clk 0:02:13]}  cxd6 {[%clk 0:01:29]} 20. Nb5 {[%clk 0:02:14]}  Bd7 {[%clk 0:00:50]} 21. Nbxd6+ {[%clk 0:02:01]}  Kf8 {[%clk 0:00:46]} 22. Rc1 {[%clk 0:01:55]}  Nh5 {[%clk 0:00:21]} 23. a4 {[%clk 0:01:34]}  Qg5 {[%clk 0:00:13]} 24. a5 {[%clk 0:01:33]}  b5 {[%clk 0:00:07]} 25. Na3 {[%clk 0:01:31]}  Bh3 {[%clk 0:00:02]} 26. Qc7 {[%clk 0:01:26]}  Qe7 {[%clk 0:00:02]} 27. Qc6 {[%clk 0:01:03]}  Rd8 {[%clk 0:00:02]} 28. Bc5 {[%clk 0:00:56]}  Nxf3+ {[%clk 0:00:02]} 29. gxf3 {[%clk 0:00:55]}  g2 {[%clk 0:00:02]} 30. Bxg2 {[%clk 0:00:44]}  Qh4+ {[%clk 0:00:02]} 31. Kd2 {[%clk 0:00:45]}  Bxg2 {[%clk 0:00:01]} 32. Nf5+ {[%clk 0:00:45]} 1-0


[Site "https://www.chess.com"]

[Event "Titled Tuesday Blitz March 29 Early 2022"]
[White "Hernandez Jimenez, Alexander Andres"]
[Black "Nozdrachev, Leonid"]
[WhiteFideId "3900452"]
[BlackFideId "24113433"]
[WhiteElo "2082"]
[BlackElo "2118"]
[Result "0-1"]
[Round "05"]
[TimeControl "180+1"]
[Date "2022.03.30"]
[WhiteClock "0:00:02"]
[BlackClock "0:00:48"]

1. e4 {[%clk 0:02:55]}  d6 {[%clk 0:02:59]} 2. d4 {[%clk 0:02:54]}  Nf6 {[%clk 0:02:58]} 3. Nc3 {[%clk 0:02:53]}  e5 {[%clk 0:02:58]} 4. Nf3 {[%clk 0:02:53]}  Nbd7 {[%clk 0:02:57]} 5. Bc4 {[%clk 0:02:51]}  Be7 {[%clk 0:02:57]} 6. O-O {[%clk 0:02:51]}  O-O {[%clk 0:02:57]} 7. Re1 {[%clk 0:02:51]}  c6 {[%clk 0:02:57]} 8. a4 {[%clk 0:02:51]}  Qc7 {[%clk 0:02:57]} 9. Bf1 {[%clk 0:02:48]}  Re8 {[%clk 0:02:58]} 10. h3 {[%clk 0:02:47]}  Nf8 {[%clk 0:02:57]} 11. g3 {[%clk 0:02:47]}  Ng6 {[%clk 0:02:56]} 12. Bg2 {[%clk 0:02:47]}  Rf8 {[%clk 0:02:56]} 13. Be3 {[%clk 0:02:34]}  h6 {[%clk 0:02:53]} 14. Qd2 {[%clk 0:02:34]}  Be6 {[%clk 0:02:52]} 15. Rad1 {[%clk 0:02:33]}  Rad8 {[%clk 0:02:51]} 16. Qc1 {[%clk 0:02:32]}  Qa5 {[%clk 0:02:44]} 17. Nh2 {[%clk 0:02:23]}  b5 {[%clk 0:02:34]} 18. axb5 {[%clk 0:02:22]}  cxb5 {[%clk 0:02:35]} 19. d5 {[%clk 0:02:20]}  Bd7 {[%clk 0:02:29]} 20. Qa1 {[%clk 0:02:19]}  Qxa1 {[%clk 0:02:24]} 21. Rxa1 {[%clk 0:02:19]}  Rc8 {[%clk 0:02:19]} 22. Rxa7 {[%clk 0:02:17]}  b4 {[%clk 0:02:19]} 23. Na2 {[%clk 0:01:59]}  Rxc2 {[%clk 0:02:20]} 24. Nxb4 {[%clk 0:01:58]}  Rxb2 {[%clk 0:02:16]} 25. Nc6 {[%clk 0:01:57]}  Rc8 {[%clk 0:02:11]} 26. Nxe7+ {[%clk 0:01:45]}  Nxe7 {[%clk 0:02:12]} 27. Ng4 {[%clk 0:01:44]}  Bxg4 {[%clk 0:02:06]} 28. hxg4 {[%clk 0:01:44]}  Kf8 {[%clk 0:02:04]} 29. g5 {[%clk 0:01:39]}  hxg5 {[%clk 0:02:01]} 30. Bxg5 {[%clk 0:01:39]}  Rcc2 {[%clk 0:01:59]} 31. Ra8+ {[%clk 0:01:32]}  Ne8 {[%clk 0:01:53]} 32. Be3 {[%clk 0:00:55]}  f5 {[%clk 0:01:48]} 33. Bh3 {[%clk 0:00:53]}  g6 {[%clk 0:01:43]} 34. Rf1 {[%clk 0:00:31]}  Kf7 {[%clk 0:01:42]} 35. Bg5 {[%clk 0:00:27]}  Nf6 {[%clk 0:01:41]} 36. exf5 {[%clk 0:00:25]}  gxf5 {[%clk 0:01:39]} 37. Ra7 {[%clk 0:00:24]}  Kg6 {[%clk 0:01:32]} 38. Rxe7 {[%clk 0:00:16]}  Kxg5 {[%clk 0:01:31]} 39. f4+ {[%clk 0:00:13]}  exf4 {[%clk 0:01:28]} 40. gxf4+ {[%clk 0:00:13]}  Kh4 {[%clk 0:01:26]} 41. Rf3 {[%clk 0:00:08]}  Rc1+ {[%clk 0:01:14]} 42. Rf1 {[%clk 0:00:05]}  Rxf1+ {[%clk 0:01:09]} 43. Bxf1 {[%clk 0:00:05]}  Nxd5 {[%clk 0:01:08]} 44. Rd7 {[%clk 0:00:04]}  Rb6 {[%clk 0:01:04]} 45. Rh7+ {[%clk 0:00:03]}  Kg3 {[%clk 0:01:03]} 46. Rg7+ {[%clk 0:00:02]}  Kxf4 {[%clk 0:01:01]} 47. Bg2 {[%clk 0:00:02]}  Ne3 {[%clk 0:00:57]} 48. Ba8 {[%clk 0:00:01]}  d5 {[%clk 0:00:53]} 49. Kf2 {[%clk 0:00:01]}  d4 {[%clk 0:00:50]} 50. Rd7 {[%clk 0:00:02]}  Rb2+ {[%clk 0:00:50]} 51. Ke1 {[%clk 0:00:02]}  Kg5 {[%clk 0:00:48]} 0-1


[Site "https://www.chess.com"]